[Event "The Kvibergspelen 2024"]
[Site "Kviberg Park Hotel & Conference, Krutvagen 2, Gothenburg, Sweden"]
[Date "2024.09.06"]
[Round "4.21"]
[White "Thyberg, Andre"]
[Black "Thern, Alfred"]
[Result "1-0"]
[TimeControl "15 minutes + 5 seconds per move from move one (Round 1 - 4) / 90 minutes + 30 seconds per move from move one (Round 5 - 8)"]
[WhiteFideId "1764764"]
[BlackFideId "1775227"]
[WhiteElo "1994"]
[BlackElo "1749"]

1. e4 {[%clk 00:15:07]} {[%emt 00:00:03]} e5 {[%clk 00:15:04]} {[%emt
00:00:07]} 2. Nf3 {[%clk 00:15:09]} {[%emt 00:00:02]} Nc6 {[%clk 00:15:06]}
{[%emt 00:00:04]} 3. Nc3 {[%clk 00:14:55]} {[%emt 00:00:18]} Nf6 {[%clk
00:14:59]} {[%emt 00:00:13]} 4. Bb5 {[%clk 00:14:58]} {[%emt 00:00:02]} Nd4
{[%clk 00:14:27]} {[%emt 00:00:36]} 5. Nxe5 {[%clk 00:14:45]} {[%emt 00:00:18]}
Qe7 {[%clk 00:14:10]} {[%emt 00:00:23]} 6. f4 {[%clk 00:14:10]} {[%emt
00:00:40]} Nxb5 {[%clk 00:13:51]} {[%emt 00:00:24]} 7. Nxb5 {[%clk 00:14:02]}
{[%emt 00:00:13]} d5 {[%clk 00:12:18]} {[%emt 00:01:37]} 8. d3 {[%clk
00:10:34]} {[%emt 00:03:33]} Qb4+ {[%clk 00:11:41]} {[%emt 00:00:42]} 9. Nc3
{[%clk 00:10:38]} {[%emt 00:00:02]} d4 {[%clk 00:11:41]} {[%emt 00:00:04]} 10.
a3 {[%clk 00:10:34]} {[%emt 00:00:09]} Qa5 {[%clk 00:11:41]} {[%emt 00:00:05]}
11. Nc4 {[%clk 00:10:32]} {[%emt 00:00:07]} Qa6 {[%clk 00:10:34]} {[%emt
00:01:12]} 12. Ne2 {[%clk 00:10:17]} {[%emt 00:00:20]} Bc5 {[%clk 00:09:25]}
{[%emt 00:01:15]} 13. h3 {[%clk 00:08:49]} {[%emt 00:01:32]} Be6 {[%clk
00:08:36]} {[%emt 00:00:54]} 14. Ne5 {[%clk 00:08:27]} {[%emt 00:00:27]} O-O-O
{[%clk 00:07:59]} {[%emt 00:00:43]} 15. f5 {[%clk 00:07:36]} {[%emt 00:00:56]}
Bd6 {[%clk 00:06:25]} {[%emt 00:01:39]} 16. Nf3 {[%clk 00:07:39]} {[%emt
00:00:01]} Bd7 {[%clk 00:04:21]} {[%emt 00:02:09]} 17. e5 {[%clk 00:07:23]}
{[%emt 00:00:21]} Bb4+ {[%clk 00:03:52]} {[%emt 00:00:35]} 18. axb4 {[%clk
00:06:08]} {[%emt 00:01:19]} Qxa1 {[%clk 00:03:46]} {[%emt 00:00:12]} 19. exf6
{[%clk 00:06:11]} {[%emt 00:00:02]} Bxf5 {[%clk 00:03:10]} {[%emt 00:00:40]} 20.
Nfxd4 {[%clk 00:05:21]} {[%emt 00:00:55]} Bg6 {[%clk 00:02:41]} {[%emt
00:00:35]} 21. fxg7 {[%clk 00:05:07]} {[%emt 00:00:18]} Rhe8 {[%clk 00:02:41]}
{[%emt 00:00:05]} 22. Nb3 {[%clk 00:03:51]} {[%emt 00:01:21]} Qa4 {[%clk
00:02:33]} {[%emt 00:00:13]} 23. O-O {[%clk 00:03:18]} {[%emt 00:00:38]} Qxb4
{[%clk 00:02:16]} {[%emt 00:00:22]} 24. Nf4 {[%clk 00:02:47]} {[%emt 00:00:36]}
Qb6+ {[%clk 00:01:18]} {[%emt 00:01:03]} 25. Kh1 {[%clk 00:02:44]} {[%emt
00:00:06]} Rg8 {[%clk 00:01:15]} {[%emt 00:00:10]} 26. Nxg6 {[%clk 00:02:44]}
{[%emt 00:00:05]} Qxg6 {[%clk 00:01:17]} {[%emt 00:00:03]} 27. Qf3 {[%clk
00:02:23]} {[%emt 00:00:26]} Rxg7 {[%clk 00:01:13]} {[%emt 00:00:09]} 28. Nc5
{[%clk 00:02:14]} {[%emt 00:00:13]} c6 {[%clk 00:01:13]} {[%emt 00:00:05]} 29.
Bf4 {[%clk 00:01:39]} {[%emt 00:00:40]} Rdg8 {[%clk 00:00:53]} {[%emt
00:00:26]} 30. Rf2 {[%clk 00:01:42]} {[%emt 00:00:02]} Qf5 {[%clk 00:00:46]}
{[%emt 00:00:12]} 31. Ne4 {[%clk 00:01:30]} {[%emt 00:00:17]} Qd5 {[%clk
00:00:12]} {[%emt 00:00:39]} 32. c4 {[%clk 00:01:19]} {[%emt 00:00:17]} Qe6
{[%clk 00:00:07]} {[%emt 00:00:10]} 33. Nd6+ {[%clk 00:01:09]} {[%emt
00:00:15]} Kd7 {[%clk 00:00:11]} {[%emt 00:00:01]} 34. Nxb7 {[%clk 00:00:49]}
{[%emt 00:00:24]} Qg6 {[%clk 00:00:07]} {[%emt 00:00:10]} 35. Nc5+ {[%clk
00:00:39]} {[%emt 00:00:15]} Kc8 {[%clk 00:00:09]} {[%emt 00:00:03]} 36. Re2
{[%clk 00:00:30]} {[%emt 00:00:13]} Qf6 {[%clk 00:00:07]} {[%emt 00:00:07]} 37.
Ne4 {[%clk 00:00:27]} {[%emt 00:00:08]} Qd4 {[%clk 00:00:08]} {[%emt 00:00:04]}
38. Nd6+ {[%clk 00:00:26]} {[%emt 00:00:07]} Kd7 {[%clk 00:00:12]} {[%emt
00:00:02]} 39. Be5 {[%clk 00:00:23]} {[%emt 00:00:07]} Qc5 {[%clk 00:00:13]}
{[%emt 00:00:03]} 40. Qf5+ {[%clk 00:00:22]} 1-0

[Event "The Kvibergspelen 2024"]
[Site "Kviberg Park Hotel & Conference, Krutvagen 2, Gothenburg, Sweden"]
[Date "2024.09.07"]
[Round "5.1"]
[White "Arman, Deniz"]
[Black "Kucuksari, Kaan"]
[Result "0-1"]
[TimeControl "15 minutes + 5 seconds per move from move one (Round 1 - 4) / 90 minutes + 30 seconds per move from move one (Round 5 - 8)"]
[WhiteTitle "FM"]
[BlackTitle "IM"]
[WhiteFideId "6302106"]
[BlackFideId "6380166"]
[WhiteElo "2348"]
[BlackElo "2455"]

1. e4 {[%clk 01:26:12]} {[%emt 00:04:39]} c5 {[%clk 01:30:57]} {[%emt
00:00:11]} 2. Nf3 {[%clk 01:26:15]} {[%emt 00:00:28]} d6 {[%clk 01:31:20]}
{[%emt 00:00:07]} 3. d4 {[%clk 01:22:09]} {[%emt 00:04:35]} cxd4 {[%clk
01:31:44]} {[%emt 00:00:07]} 4. Qxd4 {[%clk 01:22:23]} {[%emt 00:00:15]} Nf6
{[%clk 01:31:51]} {[%emt 00:00:23]} 5. Bg5 {[%clk 01:20:51]} {[%emt 00:02:03]}
Nc6 {[%clk 01:31:42]} {[%emt 00:00:38]} 6. Bb5 {[%clk 01:20:58]} {[%emt
00:00:23]} Bd7 {[%clk 01:30:05]} {[%emt 00:02:07]} 7. Bxc6 {[%clk 01:21:14]}
{[%emt 00:00:15]} Bxc6 {[%clk 01:30:29]} {[%emt 00:00:06]} 8. Nc3 {[%clk
01:21:39]} {[%emt 00:00:05]} e6 {[%clk 01:27:52]} {[%emt 00:03:06]} 9. O-O-O
{[%clk 01:21:53]} {[%emt 00:00:16]} Be7 {[%clk 01:27:54]} {[%emt 00:00:28]} 10.
Rhe1 {[%clk 01:20:30]} {[%emt 00:01:53]} O-O {[%clk 01:27:53]} {[%emt
00:00:31]} 11. Kb1 {[%clk 01:19:54]} {[%emt 00:01:06]} Qa5 {[%clk 01:26:33]}
{[%emt 00:01:51]} 12. Qd2 {[%clk 01:19:30]} {[%emt 00:00:53]} Qb6 {[%clk
01:23:26]} {[%emt 00:03:37]} 13. Nd4 {[%clk 01:18:57]} {[%emt 00:01:03]} Rfc8
{[%clk 01:21:32]} {[%emt 00:02:24]} 14. f3 {[%clk 01:14:49]} {[%emt 00:04:38]}
a5 {[%clk 01:20:23]} {[%emt 00:01:39]} 15. Be3 {[%clk 00:47:52]} {[%emt
00:27:27]} Qa6 {[%clk 01:20:38]} {[%emt 00:00:16]} 16. g4 {[%clk 00:48:12]}
{[%emt 00:00:10]} a4 {[%clk 01:06:55]} {[%emt 00:14:13]} 17. a3 {[%clk
00:43:44]} {[%emt 00:04:58]} Nd7 {[%clk 01:05:03]} {[%emt 00:02:22]} 18. Qe2
{[%clk 00:38:29]} {[%emt 00:05:45]} Ne5 {[%clk 01:05:20]} {[%emt 00:00:13]} 19.
Qxa6 {[%clk 00:37:39]} {[%emt 00:01:20]} Rxa6 {[%clk 01:05:43]} {[%emt
00:00:07]} 20. Na2 {[%clk 00:35:35]} {[%emt 00:02:34]} Raa8 {[%clk 00:54:40]}
{[%emt 00:11:32]} 21. Nb4 {[%clk 00:35:04]} {[%emt 00:01:01]} g6 {[%clk
00:54:09]} {[%emt 00:01:01]} 22. Bc1 {[%clk 00:33:50]} {[%emt 00:01:43]} Bd7
{[%clk 00:51:23]} {[%emt 00:03:17]} 23. h3 {[%clk 00:34:09]} {[%emt 00:00:12]}
g5 {[%clk 00:50:02]} {[%emt 00:01:51]} 24. f4 {[%clk 00:26:29]} {[%emt
00:08:09]} gxf4 {[%clk 00:50:23]} {[%emt 00:00:10]} 25. Bxf4 {[%clk 00:26:55]}
{[%emt 00:00:03]} Nc4 {[%clk 00:50:42]} {[%emt 00:00:11]} 26. Nf3 {[%clk
00:27:17]} {[%emt 00:00:08]} Ra5 {[%clk 00:48:55]} {[%emt 00:02:18]} 27. e5
{[%clk 00:26:21]} {[%emt 00:01:26]} d5 {[%clk 00:48:32]} {[%emt 00:00:52]} 28.
Nd3 {[%clk 00:26:47]} {[%emt 00:00:03]} Bxa3 {[%clk 00:31:37]} {[%emt
00:17:26]} 29. bxa3 {[%clk 00:25:17]} {[%emt 00:02:00]} Nxa3+ {[%clk 00:32:02]}
{[%emt 00:00:05]} 30. Ka2 {[%clk 00:24:50]} {[%emt 00:00:57]} Nxc2 {[%clk
00:31:57]} {[%emt 00:00:35]} 31. Re2 {[%clk 00:19:45]} {[%emt 00:05:35]} Bb5
{[%clk 00:31:46]} {[%emt 00:00:42]} 32. Nfe1 {[%clk 00:19:51]} {[%emt
00:00:23]} Nd4 {[%clk 00:18:30]} {[%emt 00:13:46]} 33. Rf2 {[%clk 00:17:06]}
{[%emt 00:03:15]} a3 {[%clk 00:18:43]} {[%emt 00:00:17]} 34. Nc1 {[%clk
00:17:00]} {[%emt 00:00:36]} Ra4 {[%clk 00:17:03]} {[%emt 00:02:11]} 35. Be3
{[%clk 00:16:04]} {[%emt 00:01:25]} Nc6 {[%clk 00:16:19]} {[%emt 00:01:14]} 36.
Ned3 {[%clk 00:13:10]} {[%emt 00:03:24]} Re4 {[%clk 00:16:34]} {[%emt
00:00:15]} 37. Bc5 {[%clk 00:11:52]} {[%emt 00:01:47]} Ra8 {[%clk 00:16:39]}
{[%emt 00:00:26]} 38. Rf4 {[%clk 00:11:33]} {[%emt 00:00:48]} Bc4+ {[%clk
00:14:54]} {[%emt 00:02:16]} 39. Ka1 {[%clk 00:12:00]} {[%emt 00:00:04]} Rxf4
{[%clk 00:12:50]} {[%emt 00:02:34]} 40. Nxf4 {[%clk 00:12:26]} {[%emt
00:00:03]} Nxe5 {[%clk 00:13:14]} {[%emt 00:00:06]} 41. Re1 {[%clk 00:10:59]}
{[%emt 00:01:56]} Nd7 {[%clk 00:11:49]} {[%emt 00:01:56]} 42. Be7 {[%clk
00:10:57]} {[%emt 00:00:32]} d4 {[%clk 00:10:37]} {[%emt 00:01:43]} 43. Ncd3
{[%clk 00:10:21]} {[%emt 00:01:06]} f6 {[%clk 00:09:57]} {[%emt 00:01:10]} 44.
Nf2 {[%clk 00:08:18]} {[%emt 00:02:32]} Kf7 {[%clk 00:09:34]} {[%emt 00:00:53]}
45. Bb4 {[%clk 00:08:42]} {[%emt 00:00:06]} Ra4 {[%clk 00:09:49]} {[%emt
00:00:16]} 46. N4d3 {[%clk 00:08:49]} {[%emt 00:00:23]} e5 {[%clk 00:09:17]}
{[%emt 00:01:01]} 47. g5 {[%clk 00:09:05]} {[%emt 00:00:14]} f5 {[%clk
00:08:29]} {[%emt 00:01:18]} 48. Bd6 {[%clk 00:09:09]} {[%emt 00:00:26]} e4
{[%clk 00:08:23]} {[%emt 00:00:36]} 49. Nf4 {[%clk 00:09:30]} {[%emt 00:00:09]}
Ra6 {[%clk 00:05:06]} {[%emt 00:03:47]} 50. Bb4 {[%clk 00:09:50]} {[%emt
00:00:10]} Ne5 {[%clk 00:05:29]} {[%emt 00:00:07]} 51. h4 {[%clk 00:02:57]}
{[%emt 00:07:23]} e3 {[%clk 00:05:46]} {[%emt 00:00:13]} 52. N2h3 {[%clk
00:03:11]} {[%emt 00:00:16]} Ra4 {[%clk 00:01:35]} {[%emt 00:04:42]} 53. Rb1
{[%clk 00:03:13]} {[%emt 00:00:27]} a2 {[%clk 00:01:47]} {[%emt 00:00:18]} 54.
Rb2 {[%clk 00:03:39]} {[%emt 00:00:04]} d3 {[%clk 00:01:03]} {[%emt 00:01:14]}
55. Bc3 {[%clk 00:00:49]} {[%emt 00:03:19]} b5 {[%clk 00:01:00]} {[%emt
00:00:33]} 56. Ng2 {[%clk 00:01:05]} {[%emt 00:00:15]} Ng4 {[%clk 00:01:01]}
{[%emt 00:00:29]} 57. Nhf4 {[%clk 00:01:00]} {[%emt 00:00:35]} Ra3 {[%clk
00:00:58]} {[%emt 00:00:33]} 58. Bb4 {[%clk 00:01:13]} {[%emt 00:00:17]} d2
{[%clk 00:01:16]} {[%emt 00:00:13]} 59. Bxd2 {[%clk 00:01:20]} {[%emt
00:00:23]} exd2 {[%clk 00:01:43]} {[%emt 00:00:03]} 60. Rxd2 {[%clk 00:01:44]}
{[%emt 00:00:05]} Rf3 {[%clk 00:01:16]} {[%emt 00:00:56]} 61. Rd7+ {[%clk
00:01:27]} {[%emt 00:00:48]} Ke8 {[%clk 00:01:37]} {[%emt 00:00:10]} 62. Rd1
{[%clk 00:01:30]} {[%emt 00:00:26]} b4 {[%clk 00:01:24]} {[%emt 00:00:44]} 63.
Rc1 {[%clk 00:01:30]} {[%emt 00:00:29]} b3 {[%clk 00:01:39]} {[%emt 00:00:15]}
64. Re1+ {[%clk 00:00:46]} {[%emt 00:01:14]} Kf8 {[%clk 00:01:52]} {[%emt
00:00:18]} 65. Kb2 {[%clk 00:00:34]} {[%emt 00:00:41]} Rf2+ {[%clk 00:02:17]}
{[%emt 00:00:05]} 0-1

[Event "The Kvibergspelen 2024"]
[Site "Kviberg Park Hotel & Conference, Krutvagen 2, Gothenburg, Sweden"]
[Date "2024.09.07"]
[Round "5.2"]
[White "Sorensen, Hampus"]
[Black "Grahn, Vidar"]
[Result "1-0"]
[TimeControl "15 minutes + 5 seconds per move from move one (Round 1 - 4) / 90 minutes + 30 seconds per move from move one (Round 5 - 8)"]
[WhiteTitle "IM"]
[BlackTitle "FM"]
[WhiteFideId "8703884"]
[BlackFideId "1744780"]
[WhiteElo "2420"]
[BlackElo "2219"]

1. d4 {[%clk 01:30:44]} {[%emt 00:00:16]} Nf6 {[%clk 01:30:56]} {[%emt
00:00:05]} 2. c4 {[%clk 01:30:46]} {[%emt 00:00:28]} e6 {[%clk 01:31:22]}
{[%emt 00:00:04]} 3. Nc3 {[%clk 01:31:00]} {[%emt 00:00:15]} d5 {[%clk
01:31:42]} {[%emt 00:00:11]} 4. cxd5 {[%clk 01:31:07]} {[%emt 00:00:22]} exd5
{[%clk 01:32:07]} {[%emt 00:00:06]} 5. Bg5 {[%clk 01:31:19]} {[%emt 00:00:17]}
Bb4 {[%clk 01:32:29]} {[%emt 00:00:08]} 6. e3 {[%clk 01:31:16]} {[%emt
00:00:35]} h6 {[%clk 01:32:54]} {[%emt 00:00:04]} 7. Bh4 {[%clk 01:31:33]}
{[%emt 00:00:13]} g5 {[%clk 01:33:16]} {[%emt 00:00:09]} 8. Bg3 {[%clk
01:31:59]} {[%emt 00:00:04]} Ne4 {[%clk 01:33:34]} {[%emt 00:00:11]} 9. Qc2
{[%clk 01:31:08]} {[%emt 00:01:21]} h5 {[%clk 01:31:09]} {[%emt 00:02:55]} 10.
f3 {[%clk 01:28:26]} {[%emt 00:03:12]} Nxg3 {[%clk 01:31:18]} {[%emt 00:00:21]}
11. hxg3 {[%clk 01:28:53]} {[%emt 00:00:02]} Qe7 {[%clk 01:31:36]} {[%emt
00:00:13]} 12. Kf2 {[%clk 01:26:33]} {[%emt 00:02:51]} Be6 {[%clk 01:30:49]}
{[%emt 00:01:16]} 13. a3 {[%clk 01:20:23]} {[%emt 00:06:40]} Bd6 {[%clk
01:29:44]} {[%emt 00:01:35]} 14. Nb5 {[%clk 01:20:09]} {[%emt 00:00:44]} c6
{[%clk 01:29:56]} {[%emt 00:00:18]} 15. Nxd6+ {[%clk 01:19:51]} {[%emt
00:00:48]} Qxd6 {[%clk 01:30:22]} {[%emt 00:00:04]} 16. Bd3 {[%clk 01:16:38]}
{[%emt 00:03:43]} Nd7 {[%clk 01:28:07]} {[%emt 00:02:45]} 17. Ne2 {[%clk
01:15:25]} {[%emt 00:01:43]} O-O-O {[%clk 01:27:20]} {[%emt 00:01:17]} 18. a4
{[%clk 01:04:54]} {[%emt 00:11:02]} h4 {[%clk 01:23:41]} {[%emt 00:04:08]} 19.
g4 {[%clk 00:56:47]} {[%emt 00:08:37]} Kb8 {[%clk 01:17:36]} {[%emt 00:06:34]}
20. b4 {[%clk 00:54:01]} {[%emt 00:03:17]} Nb6 {[%clk 01:13:59]} {[%emt
00:04:07]} 21. Qc5 {[%clk 00:50:40]} {[%emt 00:03:51]} Nc4 {[%clk 01:13:02]}
{[%emt 00:01:27]} 22. Bxc4 {[%clk 00:47:40]} {[%emt 00:03:30]} Qxc5 {[%clk
01:13:09]} {[%emt 00:00:23]} 23. bxc5 {[%clk 00:41:01]} {[%emt 00:07:09]} dxc4
{[%clk 01:13:35]} {[%emt 00:00:05]} 24. a5 {[%clk 00:41:13]} {[%emt 00:00:17]}
f5 {[%clk 01:08:44]} {[%emt 00:05:21]} 25. gxf5 {[%clk 00:41:02]} {[%emt
00:00:41]} Bxf5 {[%clk 01:09:05]} {[%emt 00:00:09]} 26. e4 {[%clk 00:40:25]}
{[%emt 00:01:07]} Be6 {[%clk 01:04:09]} {[%emt 00:05:25]} 27. Ke3 {[%clk
00:40:26]} {[%emt 00:00:30]} Kc7 {[%clk 00:52:42]} {[%emt 00:11:57]} 28. Nc3
{[%clk 00:35:40]} {[%emt 00:05:16]} a6 {[%clk 00:42:30]} {[%emt 00:10:42]} 29.
Rad1 {[%clk 00:30:39]} {[%emt 00:05:31]} Rh7 {[%clk 00:36:50]} {[%emt
00:06:08]} 30. Rd2 {[%clk 00:23:55]} {[%emt 00:07:15]} Rdh8 {[%clk 00:34:45]}
{[%emt 00:02:35]} 31. Kf2 {[%clk 00:16:15]} {[%emt 00:08:11]} h3 {[%clk
00:31:45]} {[%emt 00:03:29]} 32. Ne2 {[%clk 00:13:56]} {[%emt 00:02:49]} g4
{[%clk 00:28:27]} {[%emt 00:03:48]} 33. f4 {[%clk 00:11:47]} {[%emt 00:02:40]}
c3 {[%clk 00:28:29]} {[%emt 00:00:28]} 34. Nxc3 {[%clk 00:11:52]} {[%emt
00:00:25]} g3+ {[%clk 00:28:17]} {[%emt 00:00:42]} 35. Kf3 {[%clk 00:12:05]}
{[%emt 00:00:17]} Rg7 {[%clk 00:26:17]} {[%emt 00:02:30]} 36. f5 {[%clk
00:09:08]} {[%emt 00:03:27]} hxg2 {[%clk 00:26:22]} {[%emt 00:00:24]} 37. Rg1
{[%clk 00:09:30]} {[%emt 00:00:08]} Bf7 {[%clk 00:26:43]} {[%emt 00:00:10]} 38.
Rdxg2 {[%clk 00:09:23]} {[%emt 00:00:37]} Bh5+ {[%clk 00:27:02]} {[%emt
00:00:11]} 39. Kf4 {[%clk 00:07:09]} {[%emt 00:02:44]} Rg4+ {[%clk 00:27:13]}
{[%emt 00:00:19]} 40. Ke3 {[%clk 00:07:34]} {[%emt 00:00:05]} Rhg8 {[%clk
00:27:30]} {[%emt 00:00:12]} 41. Ne2 {[%clk 00:07:36]} {[%emt 00:00:29]} Re8
{[%clk 00:27:39]} {[%emt 00:00:21]} 42. Nf4 {[%clk 00:07:51]} {[%emt 00:00:14]}
1-0

[Event "The Kvibergspelen 2024"]
[Site "Kviberg Park Hotel & Conference, Krutvagen 2, Gothenburg, Sweden"]
[Date "2024.09.07"]
[Round "5.3"]
[White "Lindberg, Bengt"]
[Black "Sjoholm, Emil"]
[Result "1-0"]
[TimeControl "15 minutes + 5 seconds per move from move one (Round 1 - 4) / 90 minutes + 30 seconds per move from move one (Round 5 - 8)"]
[WhiteTitle "IM"]
[WhiteFideId "1700359"]
[BlackFideId "1720449"]
[WhiteElo "2337"]
[BlackElo "2092"]

1. e4 {[%clk 01:30:54]} {[%emt 00:00:06]} e5 {[%clk 01:30:53]} {[%emt
00:00:08]} 2. Nf3 {[%clk 01:31:10]} {[%emt 00:00:14]} Nc6 {[%clk 01:31:16]}
{[%emt 00:00:07]} 3. Bb5 {[%clk 01:31:18]} {[%emt 00:00:21]} Nf6 {[%clk
01:31:35]} {[%emt 00:00:11]} 4. d3 {[%clk 01:30:33]} {[%emt 00:01:14]} Bc5
{[%clk 01:31:54]} {[%emt 00:00:12]} 5. Bg5 {[%clk 01:29:24]} {[%emt 00:01:39]}
h6 {[%clk 01:29:43]} {[%emt 00:02:41]} 6. Bh4 {[%clk 01:29:34]} {[%emt
00:00:19]} Nd4 {[%clk 01:21:34]} {[%emt 00:08:40]} 7. Nxd4 {[%clk 01:28:09]}
{[%emt 00:01:54]} Bxd4 {[%clk 01:21:52]} {[%emt 00:00:14]} 8. c3 {[%clk
01:27:55]} {[%emt 00:00:43]} Bb6 {[%clk 01:22:15]} {[%emt 00:00:07]} 9. O-O
{[%clk 01:20:23]} {[%emt 00:08:01]} c6 {[%clk 01:21:34]} {[%emt 00:01:12]} 10.
Bc4 {[%clk 01:15:07]} {[%emt 00:05:45]} g5 {[%clk 01:18:58]} {[%emt 00:03:07]}
11. Bg3 {[%clk 01:15:30]} {[%emt 00:00:07]} d6 {[%clk 01:18:17]} {[%emt
00:01:12]} 12. Nd2 {[%clk 01:11:22]} {[%emt 00:04:36]} Qe7 {[%clk 01:12:10]}
{[%emt 00:06:38]} 13. a4 {[%clk 01:05:20]} {[%emt 00:06:33]} Bc7 {[%clk
01:05:53]} {[%emt 00:06:45]} 14. d4 {[%clk 00:57:04]} {[%emt 00:08:48]} Bd7
{[%clk 01:01:32]} {[%emt 00:04:51]} 15. d5 {[%clk 00:48:22]} {[%emt 00:09:11]}
Kf8 {[%clk 00:48:31]} {[%emt 00:13:31]} 16. Re1 {[%clk 00:44:05]} {[%emt
00:04:47]} Kg7 {[%clk 00:47:01]} {[%emt 00:02:00]} 17. Nf1 {[%clk 00:43:00]}
{[%emt 00:01:34]} h5 {[%clk 00:44:18]} {[%emt 00:03:15]} 18. dxc6 {[%clk
00:40:01]} {[%emt 00:03:28]} bxc6 {[%clk 00:43:35]} {[%emt 00:01:13]} 19. f3
{[%clk 00:39:15]} {[%emt 00:01:16]} h4 {[%clk 00:41:33]} {[%emt 00:02:33]} 20.
Bf2 {[%clk 00:39:38]} {[%emt 00:00:06]} Nh5 {[%clk 00:41:47]} {[%emt 00:00:17]}
21. Ne3 {[%clk 00:38:54]} {[%emt 00:01:13]} Nf4 {[%clk 00:41:29]} {[%emt
00:00:48]} 22. Bf1 {[%clk 00:36:53]} {[%emt 00:02:30]} Rab8 {[%clk 00:37:11]}
{[%emt 00:04:49]} 23. b4 {[%clk 00:37:09]} {[%emt 00:00:14]} a5 {[%clk
00:34:56]} {[%emt 00:02:46]} 24. b5 {[%clk 00:33:40]} {[%emt 00:03:58]} cxb5
{[%clk 00:31:22]} {[%emt 00:04:04]} 25. axb5 {[%clk 00:34:03]} {[%emt
00:00:06]} Bb6 {[%clk 00:30:42]} {[%emt 00:01:11]} 26. c4 {[%clk 00:33:34]}
{[%emt 00:00:59]} Bxe3 {[%clk 00:30:23]} {[%emt 00:00:49]} 27. Rxe3 {[%clk
00:33:28]} {[%emt 00:00:35]} Ra8 {[%clk 00:19:52]} {[%emt 00:11:02]} 28. Rea3
{[%clk 00:32:44]} {[%emt 00:01:13]} Be6 {[%clk 00:19:18]} {[%emt 00:01:05]} 29.
Rxa5 {[%clk 00:25:50]} {[%emt 00:07:24]} Rxa5 {[%clk 00:19:47]} {[%emt
00:00:02]} 30. Rxa5 {[%clk 00:26:18]} {[%emt 00:00:01]} g4 {[%clk 00:18:44]}
{[%emt 00:01:34]} 31. fxg4 {[%clk 00:26:22]} {[%emt 00:00:25]} h3 {[%clk
00:18:57]} {[%emt 00:00:18]} 32. g3 {[%clk 00:25:50]} {[%emt 00:01:01]} Qg5
{[%clk 00:17:35]} {[%emt 00:01:52]} 33. gxf4 {[%clk 00:24:30]} {[%emt
00:01:50]} exf4 {[%clk 00:16:53]} {[%emt 00:01:12]} 34. Be2 {[%clk 00:24:41]}
{[%emt 00:00:19]} Rh6 {[%clk 00:16:25]} {[%emt 00:00:58]} 35. Qa1+ {[%clk
00:20:45]} {[%emt 00:04:25]} Kh7 {[%clk 00:14:36]} {[%emt 00:02:18]} 36. b6
{[%clk 00:20:22]} {[%emt 00:00:53]} d5 {[%clk 00:14:28]} {[%emt 00:00:39]} 37.
Rxd5 {[%clk 00:15:53]} {[%emt 00:04:59]} Bxd5 {[%clk 00:14:40]} {[%emt
00:00:19]} 38. cxd5 {[%clk 00:14:11]} {[%emt 00:02:11]} f3 {[%clk 00:13:58]}
{[%emt 00:01:14]} 39. Bxf3 {[%clk 00:14:30]} {[%emt 00:00:07]} Rf6 {[%clk
00:13:52]} {[%emt 00:00:38]} 40. Be2 {[%clk 00:12:03]} {[%emt 00:02:56]} Qf4
{[%clk 00:09:22]} {[%emt 00:05:01]} 41. Qf1 {[%clk 00:12:24]} {[%emt 00:00:08]}
Rg6 {[%clk 00:07:28]} {[%emt 00:02:26]} 42. Qxh3+ {[%clk 00:12:10]} {[%emt
00:00:43]} Kg7 {[%clk 00:06:15]} {[%emt 00:01:44]} 43. Qf3 {[%clk 00:11:30]}
{[%emt 00:01:09]} Qc1+ {[%clk 00:06:13]} {[%emt 00:00:32]} 44. Kg2 {[%clk
00:11:44]} {[%emt 00:00:16]} Qb2 {[%clk 00:06:09]} {[%emt 00:00:34]} 45. Qe3
{[%clk 00:10:24]} {[%emt 00:01:49]} Kh7 {[%clk 00:05:57]} {[%emt 00:00:44]} 46.
h3 {[%clk 00:10:02]} {[%emt 00:00:51]} Rg8 {[%clk 00:05:39]} {[%emt 00:00:49]}
47. Bd3 {[%clk 00:10:06]} {[%emt 00:00:25]} 1-0

[Event "The Kvibergspelen 2024"]
[Site "Kviberg Park Hotel & Conference, Krutvagen 2, Gothenburg, Sweden"]
[Date "2024.09.07"]
[Round "5.4"]
[White "Ernst, Thomas"]
[Black "Wahlstrom, Lennart"]
[Result "1-0"]
[TimeControl "15 minutes + 5 seconds per move from move one (Round 1 - 4) / 90 minutes + 30 seconds per move from move one (Round 5 - 8)"]
[WhiteTitle "GM"]
[WhiteFideId "1700065"]
[BlackFideId "1706829"]
[WhiteElo "2261"]
[BlackElo "2058"]

1. d4 {[%clk 01:23:35]} {[%emt 00:07:26]} d5 {[%clk 01:30:45]} {[%emt
00:00:15]} 2. c4 {[%clk 01:24:01]} {[%emt 00:00:04]} c5 {[%clk 01:30:54]}
{[%emt 00:00:21]} 3. cxd5 {[%clk 01:23:50]} {[%emt 00:00:40]} Qxd5 {[%clk
01:31:20]} {[%emt 00:00:04]} 4. Nf3 {[%clk 01:24:09]} {[%emt 00:00:11]} cxd4
{[%clk 01:30:57]} {[%emt 00:00:54]} 5. Nc3 {[%clk 01:24:31]} {[%emt 00:00:07]}
Qd8 {[%clk 01:30:55]} {[%emt 00:00:33]} 6. Qxd4 {[%clk 01:23:19]} {[%emt
00:01:42]} Qd6 {[%emt 00:00:57]} 7. Qd5 Qxd5 {[%clk 01:30:27]} 8. Nd4 {[%clk
01:23:44]} {[%emt 00:00:06]} a6 9. Nxd5 {[%clk 01:19:15]} Kd8 {[%clk 01:22:57]}
{[%emt 00:07:09]} 10. Bf4 {[%clk 01:07:32]} {[%emt 00:12:12]} Nd7 {[%clk
01:18:20]} {[%emt 00:05:07]} 11. Bc7+ {[%clk 01:07:13]} {[%emt 00:00:48]} Ke8
{[%clk 01:18:46]} {[%emt 00:00:04]} 12. Ba5 {[%clk 01:06:38]} {[%emt 00:01:06]}
b6 {[%clk 01:07:03]} {[%emt 00:12:14]} 13. Nc7+ {[%clk 01:06:05]} {[%emt
00:01:03]} Kd8 {[%clk 01:07:31]} {[%emt 00:00:01]} 14. Nxa8 {[%clk 01:06:15]}
{[%emt 00:00:21]} 1-0